bitfinex/quotes_BTCUSD_20240820
["timestamp","ask_amount","ask_price","bid_price","bid_amount"]
[1724180112722,0.184476,59490.0,59480.0,0.0788042]
[1724180112723,0.03,59489.0,59480.0,0.0788042]
[1724180112961,0.03,59489.0,59481.0,0.198496]
[1724180113172,0.03,59489.0,59480.0,0.2133022]
[1724180113420,0.1174,59487.0,59480.0,0.0009042]
[1724180114057,0.023,59486.0,59480.0,0.0009042]
[1724180118355,0.0645,59485.0,59480.0,0.0009042]
[1724180118592,0.023,59484.0,59480.0,0.0009042]
[1724180119017,0.023,59487.0,59480.0,0.0009042]
[1724180121654,0.0789022,59487.0,59480.0,0.0009042]
[1724180122098,0.03,59481.0,59480.0,0.0009042]
[1724180122317,0.1182,59481.0,59480.0,0.0009042]
[1724180123637,0.318,59481.0,59480.0,0.0009042]
[1724180123828,0.36107193,59481.0,59480.0,0.0009042]
[1724180126259,0.09607193,59481.0,59480.0,0.0009042]
[1724180126479,0.053,59481.0,59480.0,0.0009042]
[1724180128923,0.1976,59481.0,59480.0,0.0009042]
[1724180129150,0.24067435,59481.0,59480.0,0.0009042]
[1724180134765,1.35764684,59481.0,59480.0,0.0009042]
[1724180135006,1.75657811,59481.0,59480.0,0.0009042]
[1724180135234,1.63063984,59481.0,59480.0,0.0009042]
[1724180135917,1.62646112,59481.0,59480.0,0.0009042]
[1724180136400,0.87554,59476.0,59475.0,0.009042]
[1724180136680,1.42863035,59476.0,59475.0,0.009042]
[1724180136911,1.43063035,59476.0,59475.0,0.009042]
[1724180137604,1.55650878,59476.0,59475.0,0.009042]
[1724180137844,0.976619,59472.0,59471.0,0.0002]
[1724180138070,2.42459335,59472.0,59471.0,0.0002]
[1724180138532,2.44759335,59472.0,59471.0,0.0002]
[1724180139021,2.44359335,59472.0,59471.0,0.0002]
[1724180139259,2.44559335,59472.0,59471.0,0.0002]
[1724180139504,2.49110512,59472.0,59471.0,0.0002]
[1724180139722,2.49310512,59472.0,59471.0,0.0002]
[1724180139954,2.49110512,59472.0,59471.0,0.0002]
[1724180140192,2.48910512,59472.0,59471.0,0.0002]
[1724180140468,2.49110512,59472.0,59471.0,0.0002]
[1724180140689,2.48910512,59472.0,59471.0,0.0002]
[1724180140913,2.49110512,59472.0,59471.0,0.0002]
[1724180141140,2.49310512,59472.0,59471.0,0.0002]
[1724180142802,2.48910512,59472.0,59471.0,0.0002]
[1724180143576,2.49310512,59472.0,59471.0,0.0002]
[1724180143817,2.89310512,59472.0,59471.0,0.0002]
[1724180144058,3.23910512,59472.0,59471.0,0.0002]
[1724180144950,0.23,59455.0,59453.0,0.00173164]
[1724180145175,1.2438,59455.0,59453.0,0.00173164]
[1724180145694,1.2668,59455.0,59453.0,0.00173164]
[1724180146404,1.1195,59455.0,59453.0,0.00173164]
[1724180149870,1.1195,59455.0,59454.0,0.153542]
[1724180150735,0.9195,59455.0,59454.0,0.153542]
[1724180150953,0.023,59455.0,59454.0,0.153542]
[1724180151169,0.023,59460.0,59454.0,0.153542]
[1724180154302,0.03,59467.0,59455.0,0.0609]
[1724180154532,0.03,59467.0,59454.0,0.01240581]
[1724180154533,0.03,59467.0,59459.0,0.0609]
[1724180154749,0.03,59467.0,59460.0,0.0778]
[1724180154980,0.03,59467.0,59461.0,0.0609]
[1724180155190,0.03,59467.0,59462.0,0.0778]
[1724180156058,0.03,59467.0,59462.0,0.077]
[1724180156459,0.023,59466.0,59462.0,0.077]
[1724180157577,0.03,59467.0,59463.0,0.0625]
[1724180158882,0.023,59466.0,59463.0,0.0625]
[1724180159767,0.023,59466.0,59455.0,0.1447]
[1724180159986,0.01984,59465.0,59455.0,0.1447]
[1724180160197,0.023,59464.0,59455.0,0.1447]
[1724180160412,0.03,59461.0,59455.0,0.1447]
[1724180160627,0.03,59461.0,59453.0,0.00173164]
[1724180160628,0.023,59460.0,59453.0,0.00173164]
[1724180160817,0.05101787,59460.0,59453.0,0.00173164]
[1724180161346,0.023,59460.0,59453.0,0.00173164]
[1724180162190,0.2,59457.0,59453.0,0.00173164]
[1724180162441,0.023,59456.0,59453.0,0.00173164]
[1724180162657,0.02717872,59456.0,59453.0,0.00173164]
[1724180163091,0.023,59456.0,59453.0,0.00173164]
[1724180163309,0.03,59461.0,59455.0,0.214854]
[1724180163536,0.03,59461.0,59455.0,0.0803]
[1724180163964,0.03,59461.0,59455.0,0.0812042]
[1724180164640,0.023,59460.0,59455.0,0.0812042]
[1724180165086,0.023,59460.0,59456.0,0.0661]
[1724180165773,0.1,59466.0,59457.0,0.21485]
[1724180165999,0.04310572,59465.0,59457.0,0.21485]
[1724180167078,0.023,59464.0,59457.0,0.21485]
[1724180167287,0.04310572,59463.0,59457.0,0.21485]
[1724180167516,0.023,59462.0,59457.0,0.21485]
[1724180167731,0.04310572,59461.0,59457.0,0.21485]
[1724180167945,0.023,59460.0,59457.0,0.0803]
[1724180168400,0.023,59465.0,59457.0,0.0803]
[1724180168597,0.04309566,59464.0,59457.0,0.0803]
[1724180168886,0.023,59463.0,59459.0,0.276744]
[1724180169104,0.023,59463.0,59462.0,0.077]
[1724180169318,0.13,59473.0,59462.0,0.077]
[1724180169532,0.0430887,59471.0,59462.0,0.077]
[1724180170648,0.023,59470.0,59462.0,0.211539]
[1724180170876,0.0430887,59469.0,59462.0,0.077]
[1724180171101,0.023,59468.0,59462.0,0.077]
[1724180171318,0.0430887,59467.0,59462.0,0.077]
[1724180171558,0.023,59466.0,59462.0,0.077]
[1724180172014,0.023,59471.0,59462.0,0.077]
[1724180172253,0.043084,59470.0,59462.0,0.077]
[1724180172472,0.023,59469.0,59462.0,0.077]
[1724180172683,0.043084,59468.0,59462.0,0.077]
[1724180172910,0.023,59467.0,59462.0,0.077]
[1724180173339,0.04308875,59466.0,59462.0,0.077]
[1724180173557,0.023,59465.0,59462.0,0.077]
[1724180173765,0.023,59468.0,59462.0,0.077]
[1724180173981,0.04308919,59467.0,59462.0,0.077]
[1724180174192,0.023,59466.0,59462.0,0.077]
[1724180174659,0.023,59468.0,59462.0,0.077]
[1724180174884,0.03,59466.0,59462.0,0.077]
[1724180175093,0.023,59465.0,59462.0,0.077]
[1724180176218,0.24309655,59464.0,59462.0,0.0823]
[1724180176679,0.023,59463.0,59462.0,0.0823]
[1724180176901,0.04310147,59463.0,59462.0,0.0823]
[1724180177117,0.06610147,59463.0,59462.0,0.0823]
[1724180182463,0.04310147,59463.0,59462.0,0.0823]
[1724180182717,0.04310147,59463.0,59462.0,0.216838]
[1724180182950,0.030822,59466.0,59462.0,0.0823]
[1724180183229,0.04310371,59465.0,59462.0,0.0823]
[1724180183458,0.04310371,59465.0,59462.0,0.216839]
[1724180183926,0.023,59464.0,59462.0,0.216839]
[1724180184413,0.023,59465.0,59462.0,0.216839]
[1724180184680,0.04310578,59464.0,59462.0,0.0823]
[1724180184909,0.023,59463.0,59462.0,0.0823]
[1724180185396,0.023,59465.0,59462.0,0.0823]
[1724180185643,0.04310878,59464.0,59462.0,0.0823]
[1724180185885,0.017655,59463.0,59462.0,0.0823]
[1724180186362,0.030822,59466.0,59462.0,0.0823]
[1724180186602,0.04310875,59465.0,59462.0,0.0823]
[1724180186884,0.030822,59466.0,59462.0,0.0823]
[1724180187348,0.04311701,59465.0,59462.0,0.0823]
[1724180188053,0.023,59464.0,59462.0,0.0823]
[1724180188526,0.023,59465.0,59460.0,0.0652]
[1724180188764,0.04311809,59464.0,59462.0,0.0009042]
[1724180189014,0.023,59463.0,59462.0,0.0009042]
[1724180189253,0.06611809,59463.0,59462.0,0.0009042]
[1724180189975,0.08434997,59463.0,59462.0,0.0009042]
[1724180190220,0.06611809,59463.0,59462.0,0.0009042]
[1724180194358,0.21739681,59463.0,59462.0,0.0009042]
[1724180195741,0.21321809,59463.0,59462.0,0.0009042]
[1724180196885,0.21321809,59463.0,59462.0,0.0654042]
[1724180196886,0.04311809,59463.0,59462.0,0.0654042]
[1724180197351,0.04311809,59465.0,59462.0,0.0654042]
[1724180198218,0.023,59464.0,59462.0,0.0654042]
[1724180198485,0.04311809,59463.0,59462.0,0.0654042]
[1724180198699,0.06611809,59463.0,59462.0,0.0654042]
[1724180199162,0.09611809,59463.0,59462.0,0.0009042]
[1724180200330,0.38014869,59463.0,59462.0,0.0009042]
[1724180200566,0.29611809,59463.0,59462.0,0.0009042]
[1724180201069,0.29694009,59463.0,59462.0,0.0009042]
[1724180203023,0.44144009,59463.0,59462.0,0.0009042]
[1724180205105,0.45152458,59463.0,59462.0,0.0009042]
[1724180205784,0.44144009,59463.0,59462.0,0.0009042]
[1724180206010,0.37954009,59463.0,59462.0,0.0009042]
[1724180206299,0.29694009,59463.0,59462.0,0.0009042]
[1724180209053,0.44650612,59463.0,59462.0,0.0009042]
[1724180210633,0.37494009,59463.0,59462.0,0.0009042]
[1724180211120,0.29694009,59463.0,59462.0,0.0009042]
[1724180217099,0.35774009,59463.0,59462.0,0.0009042]
[1724180218060,0.29694009,59463.0,59462.0,0.0009042]
[1724180218284,0.29694009,59463.0,59462.0,0.0666042]
[1724180219902,0.09694009,59463.0,59462.0,0.0666042]
[1724180221835,0.09694009,59463.0,59462.0,0.1486042]
[1724180227187,0.09694009,59463.0,59462.0,0.0009042]
[1724180227461,0.30111881,59463.0,59462.0,0.0009042]
[1724180228458,0.06694009,59463.0,59462.0,0.1372042]
[1724180231543,0.023822,59463.0,59462.0,0.1372042]
[1724180231756,0.000822,59463.0,59462.0,0.1372042]
[1724180231944,0.023822,59463.0,59462.0,0.1372042]
[1724180232381,0.000822,59463.0,59462.0,0.1372042]
[1724180232610,0.023822,59463.0,59462.0,0.1372042]
[1724180232844,0.000822,59463.0,59462.0,0.1372042]
[1724180233149,0.023822,59463.0,59462.0,0.1372042]
[1724180234357,0.000822,59463.0,59462.0,0.1372042]
[1724180234568,0.023822,59463.0,59462.0,0.1372042]
[1724180234996,0.000822,59463.0,59462.0,0.1372042]
[1724180243698,0.04386857,59463.0,59462.0,0.1372042]
[1724180243927,0.37196857,59463.0,59462.0,0.0009042]
[1724180244150,0.4348787,59463.0,59462.0,0.0009042]
[1724180244388,0.37196857,59463.0,59462.0,0.0009042]
[1724180244871,0.43516857,59463.0,59462.0,0.0009042]
[1724180245524,0.56970557,59463.0,59462.0,0.0009042]
[1724180246220,0.57270557,59463.0,59462.0,0.0009042]
[1724180246439,0.70525032,59463.0,59462.0,0.0009042]
[1724180247552,0.57071332,59463.0,59462.0,0.0009042]
[1724180248201,0.58060454,59463.0,59462.0,0.0009042]
[1724180248961,0.44505979,59463.0,59462.0,0.0009042]
[1724180249625,0.44605979,59463.0,59462.0,0.0009042]
[1724180250077,0.44505979,59463.0,59462.0,0.0009042]
[1724180255854,0.37196857,59463.0,59462.0,0.0009042]
[1724180262743,1.13167957,59463.0,59462.0,0.0009042]
[1724180262963,1.34613495,59463.0,59462.0,0.0009042]
[1724180263189,1.35013495,59463.0,59462.0,0.0009042]
[1724180263413,1.34613495,59463.0,59462.0,0.0009042]
[1724180263860,1.05203495,59463.0,59462.0,0.0009042]
[1724180264112,0.93657957,59463.0,59462.0,0.0009042]
[1724180264555,1.20565357,59463.0,59462.0,0.0009042]
[1724180265627,1.20665357,59463.0,59462.0,0.0009042]
[1724180266072,1.20565357,59463.0,59462.0,0.0009042]
[1724180266291,1.37006957,59463.0,59462.0,0.0009042]
[1724180266505,1.48766957,59463.0,59462.0,0.0009042]
[1724180267332,1.48666957,59463.0,59462.0,0.0009042]
[1724180267573,1.48766957,59463.0,59462.0,0.0009042]
[1724180267821,1.49166957,59463.0,59462.0,0.0009042]
[1724180270569,1.48766957,59463.0,59462.0,0.0009042]
[1724180270774,1.48666957,59463.0,59462.0,0.0009042]
[1724180271183,1.48766957,59463.0,59462.0,0.0009042]
[1724180272692,1.48666957,59463.0,59462.0,0.0009042]
[1724180272904,1.48966957,59463.0,59462.0,0.0009042]
[1724180273119,1.75874357,59463.0,59462.0,0.0009042]
[1724180274232,1.88473042,59463.0,59462.0,0.0009042]
[1724180274660,1.76074357,59463.0,59462.0,0.0009042]
[1724180276879,2.42981757,59463.0,59462.0,0.0009042]
[1724180277064,0.905765,59456.0,59455.0,0.0009042]
[1724180277316,1.58111757,59456.0,59455.0,0.0009042]
[1724180278428,1.99869877,59456.0,59455.0,0.0009042]
[1724180279531,2.02169877,59456.0,59455.0,0.0009042]
[1724180280364,2.01969877,59456.0,59455.0,0.0009042]
[1724180280578,2.18111477,59456.0,59455.0,0.0009042]
[1724180280796,1.51200877,59456.0,59455.0,0.0009042]
[1724180281215,1.51400877,59456.0,59455.0,0.0009042]
[1724180281631,1.52412611,59456.0,59455.0,0.0009042]
[1724180281842,2.19123211,59456.0,59455.0,0.0009042]
[1724180282054,1.79023211,59456.0,59455.0,0.0009042]
[1724180282265,1.79123211,59456.0,59455.0,0.0009042]
[1724180282475,1.79023211,59456.0,59455.0,0.0009042]
[1724180282686,1.45552611,59456.0,59455.0,0.0009042]
[1724180283571,1.33892611,59456.0,59455.0,0.0009042]
[1724180283778,1.45652611,59456.0,59455.0,0.0009042]
[1724180283992,1.72763211,59456.0,59455.0,0.0009042]
[1724180284220,2.19393211,59456.0,59455.0,0.0009042]
[1724180284694,2.19593211,59456.0,59455.0,0.0009042]
[1724180286622,2.37263211,59456.0,59455.0,0.0009042]
[1724180287087,2.37263211,59456.0,59455.0,0.00025998]
[1724180295351,2.52352465,59456.0,59455.0,0.00025998]
[1724180295564,2.52351821,59456.0,59455.0,0.00025998]
[1724180296469,2.37263211,59456.0,59455.0,0.00025998]
[1724180297079,2.37263211,59456.0,59454.0,0.009042]
[1724180297080,0.946888,59455.0,59454.0,0.00146169]
[1724180297303,1.249944,59455.0,59454.0,0.00146169]
[1724180300306,1.519055,59455.0,59454.0,0.00146169]
[1724180300517,1.594855,59455.0,59454.0,0.00146169]
[1724180300736,1.656255,59455.0,59454.0,0.00146169]
[1724180300954,1.8071411,59455.0,59454.0,0.00146169]
[1724180301168,1.656255,59455.0,59454.0,0.00146169]
[1724180302043,1.656255,59455.0,59423.0,0.134627]
[1724180302044,0.7762,59449.0,59439.0,0.0647]
[1724180302270,0.7762,59449.0,59433.0,0.0647]
[1724180302271,0.777953,59442.0,59433.0,0.0647]
[1724180302491,1.92280657,59442.0,59432.0,0.0755]
[1724180302724,1.92280657,59442.0,59431.0,0.009253]
[1724180302725,2.04038777,59442.0,59431.0,0.009253]
[1724180302928,2.1773972,59442.0,59441.0,2.0615]
[1724180304246,2.1793972,59442.0,59441.0,2.0615]
[1724180304456,2.2023972,59442.0,59441.0,2.0615]
[1724180304665,2.2023972,59442.0,59441.0,2.0624042]
[1724180304876,2.2023972,59442.0,59441.0,2.0491042]
[1724180305542,2.2023972,59442.0,59441.0,2.0251042]
[1724180305751,2.21232034,59442.0,59441.0,2.0251042]
[1724180307739,2.55832034,59442.0,59441.0,2.0251042]
[1724180308595,2.38182034,59442.0,59441.0,2.0251042]
[1724180309883,2.26402034,59442.0,59441.0,2.0251042]
[1724180310100,2.38182034,59442.0,59441.0,2.0011042]
[1724180310671,2.65098934,59442.0,59441.0,2.0011042]
[1724180310978,2.26402034,59442.0,59441.0,2.0011042]
[1724180311436,1.71264191,59442.0,59441.0,2.0011042]
[1724180311662,1.68964191,59442.0,59441.0,2.0011042]
[1724180311889,1.54027291,59442.0,59441.0,2.0011042]
[1724180312313,1.80944191,59442.0,59441.0,2.0011042]
[1724180312520,1.69164191,59442.0,59441.0,2.0011042]
[1724180312736,1.85762069,59442.0,59441.0,2.0011042]
[1724180313174,1.88062069,59442.0,59441.0,2.0011042]
[1724180313610,1.95592069,59442.0,59441.0,2.0011042]
[1724180315452,2.22508969,59442.0,59441.0,2.0011042]
[1724180316840,2.14978969,59442.0,59441.0,2.0011042]
[1724180317080,1.87662069,59442.0,59441.0,2.1371042]
[1724180317292,1.87862069,59442.0,59441.0,2.1371042]
[1724180317543,1.87862069,59442.0,59441.0,2.0011042]
[1724180319444,1.88762069,59442.0,59441.0,2.0021042]
[1724180319649,2.15678969,59442.0,59441.0,2.0021042]
[1724180319857,1.88962069,59442.0,59441.0,2.0021042]
[1724180320069,2.01516798,59442.0,59441.0,2.0021042]
[1724180320478,1.88962069,59442.0,59441.0,2.0021042]
[1724180320689,2.15878969,59442.0,59441.0,2.0021042]
[1724180320908,1.88962069,59442.0,59441.0,2.0021042]
[1724180321731,1.89762069,59442.0,59441.0,2.0031042]
[1724180321942,1.89362069,59442.0,59441.0,2.0031042]
[1724180322152,1.89562069,59442.0,59441.0,2.0031042]
[1724180323001,1.81878969,59442.0,59441.0,2.0031042]
[1724180323205,1.87998969,59442.0,59441.0,2.0031042]
[1724180323416,1.88198969,59442.0,59441.0,2.0031042]
[1724180323632,1.95938969,59442.0,59441.0,2.0031042]
[1724180324899,2.22855869,59442.0,59441.0,2.0031042]
[1724180325532,2.11004643,59442.0,59441.0,2.0031042]
[1724180326153,2.37921543,59442.0,59441.0,2.0031042]
[1724180326383,1.95938969,59442.0,59441.0,2.0031042]
[1724180326594,1.95938969,59442.0,59441.0,1.68667855]
[1724180327805,2.22855869,59442.0,59441.0,1.68667855]
[1724180328219,2.57455869,59442.0,59441.0,1.68667855]
[1724180328798,2.30538969,59442.0,59441.0,1.68667855]
[1724180329329,2.30621169,59442.0,59441.0,1.68667855]
[1724180329594,2.57538069,59442.0,59441.0,1.68667855]
[1724180329797,2.30621169,59442.0,59441.0,1.68667855]
[1724180330208,2.57538069,59442.0,59441.0,1.68667855]
[1724180334576,2.69318069,59442.0,59441.0,1.68667855]
[1724180334772,2.57538069,59442.0,59441.0,1.68667855]
[1724180334980,2.69318069,59442.0,59441.0,1.68667855]
[1724180336833,2.86283083,59442.0,59441.0,1.68667855]
[1724180338486,2.69318069,59442.0,59441.0,1.68667855]
[1724180341842,1.70363291,59442.0,59441.0,1.76547855]
[1724180342058,1.65243291,59442.0,59441.0,1.83007855]
[1724180342264,1.80354203,59442.0,59441.0,1.68667855]
[1724180342477,1.81641169,59442.0,59441.0,1.68667855]
[1724180342678,1.69861169,59442.0,59441.0,1.68667855]
[1724180342885,1.81641169,59442.0,59441.0,1.68667855]
[1724180343096,1.93941169,59442.0,59441.0,1.68667855]
[1724180343304,2.10932176,59442.0,59441.0,1.68667855]
[1724180343508,2.45889076,59442.0,59441.0,1.68667855]
[1724180343713,2.52658069,59442.0,59441.0,1.66267855]
[1724180343916,2.08441169,59442.0,59441.0,1.66267855]
[1724180344122,2.35358069,59442.0,59441.0,1.66267855]
[1724180345177,2.35358069,59442.0,59395.0,0.009042]
[1724180345178,1.750749,59403.0,59395.0,0.009042]
[1724180345390,0.673236,59415.0,59366.0,0.10085897]
[1724180345391,0.631,59374.0,59366.0,0.10085897]
[1724180345609,0.365782,59355.0,59354.0,0.22768845]
[1724180345834,0.365782,59355.0,59344.0,0.22349686]
[1724180345835,0.673945,59352.0,59344.0,0.00011]
[1724180346048,0.2,59352.0,59351.0,0.1384]
[1724180346274,1.21228448,59352.0,59351.0,0.0002]
[1724180346486,0.76945375,59352.0,59351.0,0.0002]
[1724180346695,0.81085507,59352.0,59351.0,0.0002]
[1724180346908,0.77743021,59352.0,59351.0,0.0002]
[1724180347122,0.91085504,59352.0,59351.0,0.0002]
[1724180347335,0.89723021,59352.0,59351.0,0.0012]
[1724180347548,0.86179257,59352.0,59351.0,0.0002]
[1724180347758,0.877418,59352.0,59351.0,0.0002]
[1724180347983,0.86179243,59352.0,59351.0,0.0002]
[1724180348200,1.54637043,59352.0,59351.0,0.0002]
[1724180348489,1.42457043,59352.0,59351.0,0.0002]
[1724180348699,1.02257043,59352.0,59351.0,0.0002]
[1724180348904,1.02957043,59352.0,59351.0,0.0779]
[1724180349113,0.75999243,59352.0,59351.0,0.0779]
[1724180349349,0.74299243,59352.0,59351.0,0.0779]
[1724180349567,0.75699243,59352.0,59351.0,0.0779]
[1724180349787,0.48741443,59352.0,59351.0,0.0779]
[1724180350004,0.48041443,59352.0,59351.0,0.0779]
[1724180350218,0.48341443,59352.0,59351.0,0.0779]
[1724180350437,0.47341443,59352.0,59351.0,0.0779]
[1724180351082,0.34562543,59352.0,59351.0,0.0779]
[1724180351287,0.22262061,59352.0,59351.0,0.1427]
[1724180351494,0.207,59352.0,59351.0,0.1427]
[1724180351718,0.341789,59352.0,59351.0,0.1427]
[1724180351908,0.89756648,59352.0,59351.0,0.0002]
[1724180352119,1.33714448,59352.0,59351.0,0.0002]
[1724180352328,1.60672248,59352.0,59351.0,0.0002]
[1724180352771,1.72972248,59352.0,59351.0,0.0002]
[1724180353173,1.72972248,59352.0,59351.0,0.0011042]
[1724180353419,1.80732248,59352.0,59351.0,0.0011042]
[1724180353630,1.98032248,59352.0,59351.0,0.0011042]
[1724180354036,1.90272248,59352.0,59351.0,0.0011042]
[1724180355725,2.31410048,59352.0,59351.0,0.0011042]
[1724180355941,1.334702,59332.0,59331.0,0.0002]
[1724180356215,0.634605,59317.0,59313.0,1.255986]
[1724180356417,1.86043748,59317.0,59313.0,0.010586]
[1724180356625,1.98543748,59317.0,59313.0,0.010586]
[1724180356853,1.31270048,59317.0,59316.0,0.00020791]
[1724180358311,1.31270048,59317.0,59316.0,0.00015791]
[1724180358312,1.71370048,59317.0,59316.0,0.00015791]
[1724180358525,2.08730048,59317.0,59316.0,0.00015791]
[1724180358942,2.35703748,59317.0,59316.0,0.00015791]
[1724180359148,2.35703129,59317.0,59316.0,0.00015791]
[1724180359355,2.341416,59317.0,59316.0,0.00015791]
[1724180359586,2.08729365,59317.0,59316.0,0.00015791]
[1724180359809,1.71369365,59317.0,59316.0,0.00015791]
[1724180360024,0.947156,59312.0,59311.0,0.0002]
[1724180360237,1.61552965,59312.0,59311.0,0.0002]
[1724180360448,1.66277065,59312.0,59311.0,0.0002]
[1724180360666,1.66077065,59312.0,59311.0,0.0002]
[1724180360884,0.21561465,59312.0,59311.0,0.1466]
[1724180361156,0.2,59312.0,59311.0,0.16126]
[1724180361398,0.2,59312.0,59311.0,0.1466]
[1724180365098,0.2,59312.0,59311.0,0.1475042]
[1724180365852,0.223,59312.0,59311.0,0.1475042]
[1724180366265,0.2,59312.0,59311.0,0.1475042]
[1724180369003,0.03,59317.0,59312.0,0.0852]
[1724180369210,0.13,59317.0,59312.0,0.0852]
[1724180370957,0.023,59316.0,59312.0,0.0852]
[1724180371175,0.13,59317.0,59312.0,0.0852]
[1724180371404,0.03,59317.0,59312.0,0.0852]
[1724180371605,0.03,59317.0,59314.0,0.0847]
[1724180371810,0.03,59317.0,59315.0,0.068]
[1724180371994,0.03,59317.0,59316.0,0.0847]
[1724180372183,0.03,59323.0,59316.0,0.0847]
[1724180372389,0.01562612,59322.0,59316.0,0.0847]
[1724180372583,0.01562612,59321.0,59316.0,0.0847]
[1724180372788,0.01562612,59320.0,59316.0,0.0847]
[1724180373058,0.03,59323.0,59316.0,0.0847]
[1724180373231,0.01562593,59322.0,59316.0,0.0847]
[1724180373468,0.01562593,59321.0,59316.0,0.0847]
[1724180373679,0.03,59323.0,59316.0,0.0847]
[1724180373680,0.2,59318.0,59316.0,0.0847]
[1724180373864,0.01562593,59317.0,59316.0,0.0847]
[1724180376043,0.05887788,59324.0,59320.0,0.083]
[1724180376246,0.08887788,59330.0,59320.0,0.083]
[1724180376462,0.03,59330.0,59322.0,0.083]
[1724180376668,0.030824,59330.0,59322.0,0.083]
[1724180377954,0.030824,59330.0,59324.0,0.0903]
[1724180378155,0.000824,59330.0,59326.0,0.0903]
[1724180378314,0.000824,59330.0,59328.0,0.0903]
[1724180384632,0.000824,59330.0,59329.0,0.134841]
[1724180384832,0.000824,59330.0,59329.0,0.286741]
[1724180385498,0.000824,59330.0,59329.0,0.556423]
[1724180386674,0.000824,59330.0,59329.0,0.851623]
[1724180387474,0.000824,59330.0,59329.0,1.121305]
[1724180388678,0.01646521,59330.0,59329.0,1.24128346]
[1724180389517,0.01646521,59330.0,59329.0,1.121305]
[1724180389752,0.01646521,59330.0,59329.0,1.391987]
[1724180389753,0.000824,59330.0,59329.0,1.391987]
[1724180391808,0.000824,59330.0,59329.0,1.395987]
[1724180392025,0.000824,59330.0,59329.0,1.661669]
[1724180392243,0.000824,59330.0,59329.0,1.82764778]
[1724180392464,0.03,59346.0,59345.0,0.210404]
[1724180392668,0.04564144,59346.0,59345.0,0.775213]
[1724180393124,0.04564301,59346.0,59345.0,0.775213]
[1724180393342,0.04564301,59346.0,59345.0,0.879696]
[1724180393765,0.04564301,59346.0,59345.0,0.775213]
[1724180394425,0.06322421,59346.0,59345.0,0.775213]
[1724180394627,0.06322444,59346.0,59345.0,0.775213]
[1724180394828,0.03322444,59346.0,59345.0,0.775213]
[1724180395270,0.03322444,59346.0,59345.0,0.840313]
[1724180397365,0.03322444,59346.0,59345.0,0.4359]
[1724180397574,0.03322444,59346.0,59345.0,0.570704]
[1724180398194,0.03322091,59346.0,59345.0,0.570704]
[1724180400271,0.03322091,59346.0,59339.0,0.0626]
[1724180400487,0.03322091,59346.0,59333.0,0.0626]
[1724180400488,0.23,59342.0,59333.0,0.0626]
[1724180400698,0.01563971,59341.0,59333.0,0.0626]
[1724180400908,0.23,59342.0,59331.0,0.0773]
[1724180400909,0.01563971,59340.0,59331.0,0.0773]
[1724180401134,0.23,59342.0,59331.0,0.0773]
[1724180401135,0.01563991,59339.0,59331.0,0.0773]
[1724180401573,0.01563991,59338.0,59331.0,0.0773]
[1724180401823,0.01563991,59337.0,59331.0,0.0773]
[1724180402050,0.01563991,59336.0,59331.0,0.0773]
[1724180402257,0.01563991,59335.0,59331.0,0.0773]
[1724180402468,0.23,59342.0,59331.0,0.0773]
[1724180402469,0.01563991,59334.0,59331.0,0.0773]
[1724180402671,0.01563991,59333.0,59331.0,0.0773]
[1724180402896,0.23,59342.0,59331.0,0.0773]
[1724180402897,0.01563991,59332.0,59331.0,0.0773]
[1724180403737,0.01563991,59332.0,59331.0,0.751482]
[1724180403944,0.01563991,59332.0,59331.0,0.212136]
[1724180404772,0.23,59342.0,59332.0,0.134834]
[1724180404994,0.01563667,59332.0,59331.0,0.0773]
[1724180405208,0.03,59335.0,59331.0,0.0773]
[1724180405436,0.01563682,59334.0,59332.0,0.134833]
[1724180405645,0.01563682,59334.0,59331.0,0.0773]
[1724180405877,0.01563682,59334.0,59329.0,0.134841]
[1724180406082,0.03,59328.0,59321.0,0.0779]
[1724180406297,0.03,59328.0,59321.0,0.212758]
[1724180406298,0.01563682,59327.0,59321.0,0.212758]
[1724180406505,0.03,59328.0,59321.0,0.212758]
[1724180406506,0.01563682,59326.0,59321.0,0.212758]
[1724180406725,0.01563682,59325.0,59321.0,0.212758]
[1724180406950,0.01563682,59324.0,59321.0,0.212758]
[1724180407178,0.03,59328.0,59321.0,0.212758]
[1724180407179,0.01563682,59323.0,59322.0,0.134856]
[1724180407391,0.01563682,59323.0,59322.0,0.40457]
[1724180407854,0.03,59321.0,59317.0,0.0806064]
[1724180408089,0.01563682,59320.0,59317.0,0.0009064]
[1724180408302,0.01563682,59319.0,59317.0,0.0009064]
[1724180408510,0.01563682,59318.0,59317.0,0.0009064]
[1724180409153,0.03321802,59318.0,59317.0,0.0009064]
[1724180412558,0.1092135,59318.0,59317.0,0.0009064]
[1724180412772,0.1939135,59318.0,59317.0,0.0009064]
[1724180412995,0.2939135,59318.0,59317.0,0.0009064]
[1724180413205,0.29809222,59318.0,59317.0,0.0009064]
[1724180413632,0.70269022,59318.0,59317.0,0.0009064]
[1724180413834,0.9682435,59318.0,59317.0,0.0009064]
[1724180414060,1.36427672,59318.0,59317.0,0.0009064]
[1724180414289,1.26439089,59318.0,59317.0,0.0009064]
[1724180414495,0.44567327,59318.0,59317.0,0.0009064]
[1724180414718,0.2939135,59318.0,59317.0,0.0009064]
[1724180414930,0.34406819,59318.0,59317.0,0.0009064]
[1724180415138,0.2939135,59318.0,59317.0,0.0009064]
[1724180415340,0.47893055,59318.0,59317.0,0.0009064]
[1724180415554,0.0332135,59318.0,59317.0,0.0009064]
[1724180416403,0.03321407,59318.0,59317.0,0.0009064]
[1724180416622,0.0175812,59318.0,59317.0,0.0009064]
[1724180416833,0.03321361,59318.0,59317.0,0.0009064]
[1724180418990,0.0175812,59318.0,59317.0,0.0009064]
[1724180419195,0.0175812,59318.0,59317.0,0.1357744]
[1724180419411,0.0175812,59318.0,59317.0,0.4714114]
[1724180419614,0.0175812,59318.0,59317.0,0.90290384]
[1724180419834,0.0175812,59318.0,59317.0,1.17264084]
[1724180420041,0.0175812,59318.0,59317.0,1.0903854]
[1724180420252,0.0175812,59318.0,59317.0,1.0933854]
[1724180420457,0.0175812,59318.0,59317.0,1.0953854]
[1724180420693,0.0175812,59318.0,59317.0,1.0933854]
[1724180420909,0.0175812,59318.0,59317.0,1.0913854]
[1724180421538,0.0175812,59318.0,59317.0,1.14081203]